[Event "GrandPrix_30.05"]
[Site "Chess.com"]
[Date "2020.05.30"]
[Round "1"]
[White "Dolphin_2010"]
[Black "Herracek"]
[Result "0-1"]
[WhiteElo "2065"]
[BlackElo "2412"]
[TimeControl "600+2"]
[EndTime "8:18:55 PDT"]
[Termination "Herracek won by checkmate"]

1. e4 {[%clk 0:09:57.1]} 1... c5 {[%clk 0:10:00.8]} 2. Nf3 {[%clk 0:09:57.1]}
2... Nc6 {[%clk 0:10:01.7]} 3. Bb5 {[%clk 0:09:57.7]} 3... g6 {[%clk 0:10:02]}
4. Bxc6 {[%clk 0:09:57.6]} 4... dxc6 {[%clk 0:10:03.9]} 5. O-O {[%clk
0:09:53.8]} 5... Bg7 {[%clk 0:10:05.2]} 6. d3 {[%clk 0:09:48.4]} 6... Nf6 {[%clk
0:10:00.7]} 7. Nc3 {[%clk 0:09:48.2]} 7... O-O {[%clk 0:10:00.9]} 8. Be3 {[%clk
0:09:37.9]} 8... b6 {[%clk 0:10:00]} 9. a4 {[%clk 0:09:24.4]} 9... Qc7 {[%clk
0:09:49.3]} 10. a5 {[%clk 0:09:20.2]} 10... Bg4 {[%clk 0:09:48.8]} 11. h3 {[%clk
0:09:18.1]} 11... Bxf3 {[%clk 0:09:49.8]} 12. Qxf3 {[%clk 0:09:20]} 12... Nd7
{[%clk 0:09:45.4]} 13. Qe2 {[%clk 0:09:11.8]} 13... b5 {[%clk 0:09:41.6]} 14. f4
{[%clk 0:09:07.2]} 14... a6 {[%clk 0:09:40.5]} 15. e5 {[%clk 0:09:03.4]} 15...
f5 {[%clk 0:08:39.8]} 16. e6 {[%clk 0:08:53.5]} 16... Nf6 {[%clk 0:08:40.6]} 17.
Bxc5 {[%clk 0:08:53.9]} 17... Nh5 {[%clk 0:08:41.7]} 18. Qe3 {[%clk 0:08:42.9]}
18... Rad8 {[%clk 0:08:35.4]} 19. Kh1 {[%clk 0:08:11.9]} 19... Rc8 {[%clk
0:07:54.6]} 20. Ra2 {[%clk 0:07:31.2]} 20... Bxc3 {[%clk 0:07:12.9]} 21. bxc3
{[%clk 0:07:26.7]} 21... g5 {[%clk 0:07:14.4]} 22. g3 {[%clk 0:06:10]} 22... Rf6
{[%clk 0:07:07]} 23. Bd4 {[%clk 0:03:25.9]} 23... Rg6 {[%clk 0:06:56.3]} 24. Kh2
{[%clk 0:02:34.6]} 24... Qd6 {[%clk 0:06:00.2]} 25. Qe5 {[%clk 0:01:43]} 25...
gxf4 {[%clk 0:05:43.4]} 26. Qxf5 {[%clk 0:01:02.5]} 26... Rf8 {[%clk 0:04:12.4]}
27. Qxh5 {[%clk 0:00:58.8]} 27... fxg3+ {[%clk 0:04:13.5]} 28. Kg1 {[%clk
0:00:38.3]} 28... Rxf1+ {[%clk 0:04:13.8]} 29. Kxf1 {[%clk 0:00:39.3]} 29...
Qf4+ {[%clk 0:04:15]} 30. Kg2 {[%clk 0:00:21.4]} 30... Qd2+ {[%clk 0:04:13.6]}
31. Kg1 {[%clk 0:00:11.9]} 31... Qh2+ {[%clk 0:04:11.8]} 32. Kf1 {[%clk
0:00:13]} 32... g2+ {[%clk 0:04:12]} 33. Ke2 {[%clk 0:00:02.1]} 33... g1=Q+
{[%clk 0:04:11.8]} 34. Kf3 {[%clk 0:00:04]} 34... Qd1+ {[%clk 0:04:06.4]} 35.
Ke4 {[%clk 0:00:05.9]} 35... Qxh5 {[%clk 0:04:06]} 36. Bf6 {[%clk 0:00:02.6]}
36... Qd5+ {[%clk 0:04:06.4]} 37. Ke3 {[%clk 0:00:02.1]} 37... Rg3+ {[%clk
0:04:06]} 38. Kf4 {[%clk 0:00:02.6]} 38... Qf2# {[%clk 0:04:05.8]} 0-1

[Event "GrandPrix_30.05"]
[Site "Chess.com"]
[Date "2020.05.30"]
[Round "1"]
[White "Kildepiotr"]
[Black "Bulldog167"]
[Result "0-1"]
[WhiteElo "2066"]
[BlackElo "2410"]
[TimeControl "600+2"]
[EndTime "8:19:09 PDT"]
[Termination "Bulldog167 won by resignation"]

1. Nf3 {[%clk 0:10:01]} 1... d5 {[%clk 0:09:57.8]} 2. g3 {[%clk 0:10:00.5]} 2...
g6 {[%clk 0:09:58]} 3. Bg2 {[%clk 0:10:01.4]} 3... Bg7 {[%clk 0:09:59.2]} 4. O-O
{[%clk 0:10:02]} 4... e5 {[%clk 0:09:58]} 5. d3 {[%clk 0:10:03.2]} 5... Ne7
{[%clk 0:09:52.2]} 6. Nbd2 {[%clk 0:10:03.4]} 6... O-O {[%clk 0:09:50]} 7. e4
{[%clk 0:10:03.9]} 7... d4 {[%clk 0:09:33.6]} 8. Nc4 {[%clk 0:10:02.8]} 8... f6
{[%clk 0:09:27.6]} 9. a4 {[%clk 0:10:02.7]} 9... Be6 {[%clk 0:09:21.7]} 10. Ne1
{[%clk 0:10:03.2]} 10... Nd7 {[%clk 0:09:00.4]} 11. f4 {[%clk 0:10:03.5]} 11...
Nb6 {[%clk 0:08:22.9]} 12. Na5 {[%clk 0:09:40.5]} 12... Rb8 {[%clk 0:08:18.8]}
13. Nf3 {[%clk 0:09:33.4]} 13... h6 {[%clk 0:07:42.6]} 14. f5 {[%clk 0:08:46.7]}
14... gxf5 {[%clk 0:07:43.7]} 15. Nh4 {[%clk 0:08:47.4]} 15... fxe4 {[%clk
0:07:37.8]} 16. Bxe4 {[%clk 0:08:23]} 16... f5 {[%clk 0:07:38.4]} 17. Bxb7
{[%clk 0:08:14.7]} 17... Nbd5 {[%clk 0:06:53.2]} 18. Nc6 {[%clk 0:08:01.1]}
18... Nxc6 {[%clk 0:06:45.9]} 19. Bxc6 {[%clk 0:08:01.7]} 19... Qd6 {[%clk
0:05:44.5]} 20. Bxd5 {[%clk 0:07:59.8]} 20... Qxd5 {[%clk 0:05:41.8]} 21. Qh5
{[%clk 0:07:59.6]} 21... f4 {[%clk 0:04:56.6]} 22. Ng6 {[%clk 0:07:03.2]} 22...
Rf7 {[%clk 0:04:57.3]} 23. gxf4 {[%clk 0:07:03.1]} 23... Bc8 {[%clk 0:04:05.1]}
24. Qf3 {[%clk 0:06:09.6]} 24... Qd6 {[%clk 0:04:05.6]} 25. Qg3 {[%clk
0:05:29.5]} 25... Bb7 {[%clk 0:03:39.5]} 26. Nxe5 {[%clk 0:04:50]} 26... Rf5
{[%clk 0:02:47.3]} 27. h3 {[%clk 0:04:30.2]} 27... Kh7 {[%clk 0:02:45.5]} 28.
Kh2 {[%clk 0:04:29.2]} 28... Bxe5 {[%clk 0:02:20.3]} 29. fxe5 {[%clk 0:04:01.3]}
29... Rxf1 {[%clk 0:02:20.6]} 30. Bxh6 {[%clk 0:04:01.9]} 30... Qxh6 {[%clk
0:02:02.7]} 31. Rxf1 {[%clk 0:04:01.7]} 31... Rg8 {[%clk 0:01:53.2]} 32. Qf2
{[%clk 0:03:46.6]} 32... Rg2+ {[%clk 0:01:51.1]} 33. Qxg2 {[%clk 0:03:47.8]}
33... Bxg2 {[%clk 0:01:53]} 34. Kxg2 {[%clk 0:03:49.7]} 34... Qc6+ {[%clk
0:01:50.9]} 35. Kg3 {[%clk 0:03:48.9]} 35... Qxc2 {[%clk 0:01:51.2]} 36. Rf3
{[%clk 0:03:40.7]} 36... Kg6 {[%clk 0:01:39.1]} 37. b4 {[%clk 0:03:30.9]} 37...
Qxa4 {[%clk 0:01:33.6]} 38. Kf4 {[%clk 0:03:22.8]} 38... Qxb4 {[%clk 0:01:31.8]}
39. Ke4 {[%clk 0:03:23.8]} 39... Qb7+ {[%clk 0:01:32.4]} 40. Kf4 {[%clk
0:03:24.8]} 40... a5 {[%clk 0:01:32.1]} 41. Rg3+ {[%clk 0:03:20.7]} 41... Kf7
{[%clk 0:01:33]} 42. Kf5 {[%clk 0:03:20.5]} 42... Qc8+ {[%clk 0:01:32.6]} 43.
Ke4 {[%clk 0:03:21.7]} 43... a4 {[%clk 0:01:29.9]} 44. Rf3+ {[%clk 0:03:18.8]}
44... Ke7 {[%clk 0:01:31.2]} 45. Kxd4 {[%clk 0:03:19.4]} 45... a3 {[%clk
0:01:30.2]} 46. Rf1 {[%clk 0:03:16]} 46... Qb7 {[%clk 0:01:26]} 47. Kc4 {[%clk
0:03:11.1]} 47... a2 {[%clk 0:01:25.9]} 0-1

[Event "GrandPrix_30.05"]
[Site "Chess.com"]
[Date "2020.05.30"]
[Round "1"]
[White "ENajer77"]
[Black "cassoulet"]
[Result "0-1"]
[WhiteElo "2263"]
[BlackElo "2124"]
[TimeControl "600+2"]
[EndTime "8:19:16 PDT"]
[Termination "cassoulet won on time"]

1. e4 {[%clk 0:09:50.6]} 1... c5 {[%clk 0:10:00.3]} 2. Nf3 {[%clk 0:09:49]} 2...
Nc6 {[%clk 0:10:01.5]} 3. Bb5 {[%clk 0:09:39.4]} 3... g6 {[%clk 0:10:02]} 4. O-O
{[%clk 0:09:36.2]} 4... Bg7 {[%clk 0:10:02.6]} 5. c3 {[%clk 0:09:31.7]} 5... Nf6
{[%clk 0:10:02.6]} 6. Qa4 {[%clk 0:09:31.3]} 6... O-O {[%clk 0:09:57]} 7. d4
{[%clk 0:09:19.1]} 7... cxd4 {[%clk 0:08:48.3]} 8. cxd4 {[%clk 0:09:18.4]} 8...
a6 {[%clk 0:08:49.4]} 9. d5 {[%clk 0:07:53.6]} 9... Na7 {[%clk 0:08:13.4]} 10.
Bd3 {[%clk 0:07:50.7]} 10... d6 {[%clk 0:08:14.1]} 11. Nc3 {[%clk 0:07:50.7]}
11... Bd7 {[%clk 0:08:07.3]} 12. Qb3 {[%clk 0:07:44.5]} 12... b5 {[%clk
0:08:03.4]} 13. Re1 {[%clk 0:07:21.3]} 13... Ng4 {[%clk 0:07:41.2]} 14. h3
{[%clk 0:07:13.2]} 14... Ne5 {[%clk 0:07:41.4]} 15. Nxe5 {[%clk 0:07:14.2]}
15... Bxe5 {[%clk 0:07:41.9]} 16. Bh6 {[%clk 0:07:11.9]} 16... Re8 {[%clk
0:07:42.8]} 17. Rad1 {[%clk 0:06:49.9]} 17... Rb8 {[%clk 0:07:17.1]} 18. f4
{[%clk 0:06:19.4]} 18... Bh8 {[%clk 0:06:40.4]} 19. e5 {[%clk 0:03:45.6]} 19...
b4 {[%clk 0:06:19.3]} 20. Nb1 {[%clk 0:03:36]} 20... Qa5 {[%clk 0:06:11.5]} 21.
Qc4 {[%clk 0:03:08.7]} 21... Bb5 {[%clk 0:05:51.4]} 22. Qe4 {[%clk 0:03:08.2]}
22... Bxd3 {[%clk 0:05:49.3]} 23. Rxd3 {[%clk 0:03:05.8]} 23... Nb5 {[%clk
0:05:40.6]} 24. Nd2 {[%clk 0:02:20.9]} 24... Qxa2 {[%clk 0:05:18.4]} 25. Nc4
{[%clk 0:01:48.4]} 25... dxe5 {[%clk 0:04:53.2]} 26. fxe5 {[%clk 0:01:45.6]}
26... Rbc8 {[%clk 0:04:53.4]} 27. b3 {[%clk 0:00:12.3]} 27... Nc3 {[%clk
0:04:47.9]} 28. Qf4 {[%clk 0:00:08.8]} 28... Qxb3 {[%clk 0:04:25.4]} 29. Rf3
{[%clk 0:00:07]} 29... f5 {[%clk 0:04:05.1]} 30. Qxf5 {[%clk 0:00:03.9]} 30...
gxf5 {[%clk 0:03:34.8]} 31. Rg3+ {[%clk 0:00:04.8]} 31... Bg7 {[%clk 0:03:36.2]}
32. Rxg7+ {[%clk 0:00:03.6]} 32... Kh8 {[%clk 0:03:36.8]} 33. Rg5 {[%clk
0:00:02.6]} 33... Rg8 {[%clk 0:03:24.4]} 0-1

[Event "GrandPrix_30.05"]
[Site "Chess.com"]
[Date "2020.05.30"]
[Round "1"]
[White "BairaKovanova"]
[Black "grunbergmihai"]
[Result "1-0"]
[WhiteElo "2181"]
[BlackElo "2298"]
[TimeControl "600+2"]
[EndTime "8:19:18 PDT"]
[Termination "BairaKovanova won by resignation"]

1. e4 {[%clk 0:09:59.3]} 1... Nf6 {[%clk 0:10:00]} 2. e5 {[%clk 0:09:45.1]} 2...
Nd5 {[%clk 0:09:46.7]} 3. d4 {[%clk 0:09:40.1]} 3... d6 {[%clk 0:09:47.6]} 4.
Nf3 {[%clk 0:09:33.1]} 4... dxe5 {[%clk 0:09:47.9]} 5. dxe5 {[%clk 0:09:33.5]}
5... Bg4 {[%clk 0:09:47.4]} 6. Be2 {[%clk 0:09:34.2]} 6... Nc6 {[%clk
0:09:39.9]} 7. h3 {[%clk 0:09:31]} 7... Bh5 {[%clk 0:09:34.5]} 8. O-O {[%clk
0:09:25]} 8... e6 {[%clk 0:09:34.5]} 9. Re1 {[%clk 0:09:22.3]} 9... Be7 {[%clk
0:09:13.3]} 10. Nbd2 {[%clk 0:07:25.1]} 10... O-O {[%clk 0:09:10.4]} 11. Nf1
{[%clk 0:07:24.6]} 11... Ndb4 {[%clk 0:09:04.6]} 12. Bd2 {[%clk 0:07:00.1]}
12... Bg6 {[%clk 0:08:56.6]} 13. Ne3 {[%clk 0:06:55.4]} 13... Bc5 {[%clk
0:08:48.4]} 14. Bxb4 {[%clk 0:05:09.3]} 14... Nxb4 {[%clk 0:08:38.1]} 15. a3
{[%clk 0:04:48.2]} 15... Bxe3 {[%clk 0:07:33.4]} 16. axb4 {[%clk 0:04:47.9]}
16... Bb6 {[%clk 0:07:32.3]} 17. c4 {[%clk 0:04:43.2]} 17... c6 {[%clk 0:07:13]}
18. Qb3 {[%clk 0:04:19.4]} 18... Qe7 {[%clk 0:06:57.7]} 19. c5 {[%clk
0:04:10.5]} 19... Bc7 {[%clk 0:06:57.8]} 20. Bd3 {[%clk 0:04:07.5]} 20... Bxd3
{[%clk 0:06:38]} 21. Qxd3 {[%clk 0:04:07.9]} 21... Rfd8 {[%clk 0:06:39.9]} 22.
Qc2 {[%clk 0:04:06.8]} 22... Rd5 {[%clk 0:06:34.9]} 23. Qc3 {[%clk 0:03:07.4]}
23... a6 {[%clk 0:06:26.3]} 24. Nd2 {[%clk 0:02:56.7]} 24... Rad8 {[%clk
0:05:58.7]} 25. Nc4 {[%clk 0:02:56.3]} 25... Rd3 {[%clk 0:05:42.6]} 26. Qc2
{[%clk 0:02:57.1]} 26... R3d4 {[%clk 0:05:42.8]} 27. Re4 {[%clk 0:01:50.9]}
27... Rxe4 {[%clk 0:04:37.4]} 28. Qxe4 {[%clk 0:01:49.9]} 28... f6 {[%clk
0:04:30.6]} 29. Nd6 {[%clk 0:00:44.2]} 29... fxe5 {[%clk 0:04:24.4]} 30. Nxb7
{[%clk 0:00:44.9]} 30... Rd4 {[%clk 0:04:13.6]} 31. Qxc6 {[%clk 0:00:45.2]}
31... Rxb4 {[%clk 0:04:12.1]} 32. Nd6 {[%clk 0:00:42.2]} 32... Rxb2 {[%clk
0:03:56.4]} 33. Rxa6 {[%clk 0:00:26.5]} 33... Rb1+ {[%clk 0:03:49.2]} 34. Kh2
{[%clk 0:00:26.3]} 34... e4 {[%clk 0:03:25.3]} 35. Qxe4 {[%clk 0:00:22.3]} 35...
g6 {[%clk 0:03:17.6]} 36. Qxb1 {[%clk 0:00:20.3]} 1-0

[Event "GrandPrix_30.05"]
[Site "Chess.com"]
[Date "2020.05.30"]
[Round "1"]
[White "RitvarsReimanis"]
[Black "Nikame"]
[Result "1-0"]
[WhiteElo "2098"]
[BlackElo "2270"]
[TimeControl "600+2"]
[EndTime "8:19:23 PDT"]
[Termination "RitvarsReimanis won by resignation"]

1. d4 {[%clk 0:10:01.3]} 1... Nf6 {[%clk 0:09:58.2]} 2. Nf3 {[%clk 0:10:01.1]}
2... e6 {[%clk 0:09:57.4]} 3. c4 {[%clk 0:09:58.7]} 3... a6 {[%clk 0:09:57.1]}
4. Qb3 {[%clk 0:09:14.8]} 4... c5 {[%clk 0:09:53]} 5. e3 {[%clk 0:08:51.6]} 5...
d5 {[%clk 0:09:50.6]} 6. cxd5 {[%clk 0:08:49.2]} 6... exd5 {[%clk 0:09:49.8]} 7.
dxc5 {[%clk 0:08:39]} 7... Nc6 {[%clk 0:09:43.8]} 8. Be2 {[%clk 0:08:30.1]} 8...
Bxc5 {[%clk 0:09:42.3]} 9. O-O {[%clk 0:08:28.2]} 9... O-O {[%clk 0:09:41.8]}
10. Rd1 {[%clk 0:08:25.9]} 10... Qe7 {[%clk 0:09:22.8]} 11. Nc3 {[%clk
0:07:47.9]} 11... Be6 {[%clk 0:09:11.1]} 12. Nd4 {[%clk 0:07:35]} 12... Bg4
{[%clk 0:07:51.9]} 13. Bxg4 {[%clk 0:06:43.4]} 13... Nxg4 {[%clk 0:07:51.1]} 14.
h3 {[%clk 0:05:19.1]} 14... Nf6 {[%clk 0:06:36.5]} 15. Nxd5 {[%clk 0:04:14]}
15... Nxd5 {[%clk 0:06:35.1]} 16. Nf5 {[%clk 0:04:00.9]} 16... Qe6 {[%clk
0:06:27.9]} 17. Rxd5 {[%clk 0:03:53.9]} 17... b6 {[%clk 0:06:20.3]} 18. Bd2
{[%clk 0:03:24.6]} 18... Rad8 {[%clk 0:06:13]} 19. Rxd8 {[%clk 0:00:50.8]} 19...
Rxd8 {[%clk 0:06:12.1]} 20. Qxe6 {[%clk 0:00:44.4]} 20... fxe6 {[%clk 0:06:14]}
21. Nd4 {[%clk 0:00:45.7]} 21... Nxd4 {[%clk 0:06:04.3]} 22. exd4 {[%clk
0:00:47.6]} 22... Bxd4 {[%clk 0:06:03.2]} 23. Bc3 {[%clk 0:00:22.2]} 23... Bxc3
{[%clk 0:06:04]} 24. bxc3 {[%clk 0:00:23.5]} 24... Rc8 {[%clk 0:05:58.6]} 25.
Rb1 {[%clk 0:00:23.6]} 25... b5 {[%clk 0:05:59.6]} 26. Rb3 {[%clk 0:00:24.7]}
26... Rc4 {[%clk 0:05:59.8]} 27. Ra3 {[%clk 0:00:25.3]} 27... Rc6 {[%clk
0:05:55.6]} 28. Kf1 {[%clk 0:00:23]} 28... Kf7 {[%clk 0:05:55.8]} 29. Ke2 {[%clk
0:00:24.5]} 29... Kf6 {[%clk 0:05:53.9]} 30. Kd3 {[%clk 0:00:25.9]} 30... Ke5
{[%clk 0:05:54.8]} 31. Ra5 {[%clk 0:00:25.3]} 31... Rd6+ {[%clk 0:05:51.4]} 32.
Ke3 {[%clk 0:00:26.3]} 32... Kd5 {[%clk 0:05:51.7]} 33. a4 {[%clk 0:00:20.7]}
33... Kc4 {[%clk 0:05:48.8]} 34. axb5 {[%clk 0:00:22]} 34... axb5 {[%clk
0:05:49.2]} 35. Ra7 {[%clk 0:00:15.2]} 35... Rd3+ {[%clk 0:05:38.9]} 36. Ke4
{[%clk 0:00:14.9]} 36... Rxc3 {[%clk 0:05:34.5]} 37. Rxg7 {[%clk 0:00:12.7]}
37... b4 {[%clk 0:05:32.8]} 38. Rxh7 {[%clk 0:00:13.6]} 38... Rc2 {[%clk
0:05:26.7]} 39. Ke3 {[%clk 0:00:10.8]} 39... Rc3+ {[%clk 0:05:20.7]} 40. Kd2
{[%clk 0:00:06.8]} 40... Ra3 {[%clk 0:05:20.1]} 41. Rc7+ {[%clk 0:00:08.2]}
41... Kb3 {[%clk 0:05:17.3]} 42. h4 {[%clk 0:00:07.5]} 42... Ra2+ {[%clk
0:05:18.2]} 43. Ke3 {[%clk 0:00:09]} 43... Ra1 {[%clk 0:05:13.1]} 44. h5 {[%clk
0:00:09.9]} 44... Re1+ {[%clk 0:05:13.2]} 45. Kf4 {[%clk 0:00:10]} 45... e5+
{[%clk 0:05:05.1]} 46. Kg5 {[%clk 0:00:10.6]} 46... e4 {[%clk 0:05:05.3]} 47. h6
{[%clk 0:00:11]} 47... Rg1 {[%clk 0:05:03.3]} 48. g4 {[%clk 0:00:12.2]} 48...
Ka3 {[%clk 0:04:51.6]} 49. Ra7+ {[%clk 0:00:12.3]} 49... Kb2 {[%clk 0:04:52.1]}
50. h7 {[%clk 0:00:13.8]} 50... Rh1 {[%clk 0:04:52.6]} 51. Kg6 {[%clk
0:00:14.1]} 51... b3 {[%clk 0:04:52.9]} 52. Ra8 {[%clk 0:00:15.5]} 52... e3
{[%clk 0:04:33.1]} 53. fxe3 {[%clk 0:00:15.9]} 1-0

[Event "GrandPrix_30.05"]
[Site "Chess.com"]
[Date "2020.05.30"]
[Round "1"]
[White "Glek_Igor"]
[Black "WildBizon"]
[Result "1-0"]
[WhiteElo "2463"]
[BlackElo "2111"]
[TimeControl "600+2"]
[EndTime "8:19:39 PDT"]
[Termination "Glek_Igor won by resignation"]

1. e4 {[%clk 0:09:41.9]} 1... c5 {[%clk 0:09:02]} 2. Nf3 {[%clk 0:09:40]} 2...
Nc6 {[%clk 0:09:03.2]} 3. Bb5 {[%clk 0:09:40.6]} 3... g6 {[%clk 0:09:04.1]} 4.
O-O {[%clk 0:09:41.1]} 4... Bg7 {[%clk 0:08:54.5]} 5. Re1 {[%clk 0:09:40.4]}
5... e5 {[%clk 0:08:42.6]} 6. Bxc6 {[%clk 0:09:39.4]} 6... dxc6 {[%clk
0:08:31.1]} 7. d3 {[%clk 0:09:40.5]} 7... Qe7 {[%clk 0:08:07.3]} 8. a3 {[%clk
0:09:40.2]} 8... Nf6 {[%clk 0:07:48.7]} 9. b4 {[%clk 0:09:40]} 9... O-O {[%clk
0:07:22.6]} 10. bxc5 {[%clk 0:09:36.8]} 10... Nd7 {[%clk 0:07:00.7]} 11. a4
{[%clk 0:09:35.4]} 11... Nxc5 {[%clk 0:06:51.6]} 12. Ba3 {[%clk 0:09:34.2]}
12... b6 {[%clk 0:06:53]} 13. Nbd2 {[%clk 0:09:04.1]} 13... Be6 {[%clk
0:06:43.1]} 14. Nb3 {[%clk 0:07:55.5]} 14... Bxb3 {[%clk 0:06:29.4]} 15. cxb3
{[%clk 0:07:55.6]} 15... Rfd8 {[%clk 0:06:31]} 16. Rc1 {[%clk 0:07:41.1]} 16...
Bf8 {[%clk 0:06:29.5]} 17. Bxc5 {[%clk 0:07:38.8]} 17... bxc5 {[%clk 0:06:30]}
18. Rc3 {[%clk 0:07:19.2]} 18... Rab8 {[%clk 0:06:23.2]} 19. Qc2 {[%clk
0:07:15.3]} 19... f6 {[%clk 0:06:09.5]} 20. Nd2 {[%clk 0:07:11.8]} 20... Rd4
{[%clk 0:06:02]} 21. Nc4 {[%clk 0:07:10]} 21... Qd7 {[%clk 0:05:59.7]} 22. h3
{[%clk 0:07:03.4]} 22... Rd8 {[%clk 0:06:00.5]} 23. Nb2 {[%clk 0:06:36.9]} 23...
Qd6 {[%clk 0:05:48.8]} 24. a5 {[%clk 0:06:33.8]} 24... Qc7 {[%clk 0:05:46.7]}
25. Ra1 {[%clk 0:06:33.5]} 25... Be7 {[%clk 0:05:42.3]} 26. a6 {[%clk
0:06:25.9]} 26... Qb6 {[%clk 0:05:38.1]} 27. Nc4 {[%clk 0:06:13.5]} 27... Qb5
{[%clk 0:05:29.4]} 28. Ra5 {[%clk 0:06:05.7]} 28... Qb4 {[%clk 0:05:30.4]} 29.
Ra4 {[%clk 0:06:05.4]} 29... Qb5 {[%clk 0:05:31.5]} 30. g3 {[%clk 0:05:23.1]}
30... Kg7 {[%clk 0:05:12.7]} 31. Kg2 {[%clk 0:05:23.6]} 31... R8d7 {[%clk
0:05:07.9]} 32. Ra1 {[%clk 0:04:38.2]} 32... Rd8 {[%clk 0:05:04]} 33. h4 {[%clk
0:04:14.9]} 33... h5 {[%clk 0:05:03.5]} 34. f4 {[%clk 0:03:50]} 34... exf4
{[%clk 0:04:59.9]} 35. gxf4 {[%clk 0:03:50]} 35... Qb8 {[%clk 0:05:01.1]} 36.
Rf1 {[%clk 0:03:47.2]} 36... Qc8 {[%clk 0:05:02.2]} 37. Qe2 {[%clk 0:03:43.2]}
37... Qxa6 {[%clk 0:05:01.3]} 38. f5 {[%clk 0:03:40.3]} 38... Qc8 {[%clk
0:05:01]} 39. Ne3 {[%clk 0:03:33.5]} 39... c4 {[%clk 0:04:57.6]} 40. bxc4 {[%clk
0:03:01]} 40... Bb4 {[%clk 0:04:00.5]} 41. Rb3 {[%clk 0:02:59.1]} 41... a5
{[%clk 0:04:01.5]} 42. fxg6 {[%clk 0:02:58.9]} 42... Kxg6 {[%clk 0:03:56.5]} 43.
Nf5 {[%clk 0:02:58.4]} 43... R4d7 {[%clk 0:03:49.2]} 44. d4 {[%clk 0:02:55.2]}
44... Rh8 {[%clk 0:03:35.2]} 45. e5 {[%clk 0:02:41.3]} 45... Qe8 {[%clk
0:03:14.8]} 46. e6 {[%clk 0:02:21]} 46... Rb7 {[%clk 0:03:11.7]} 47. Qe4 {[%clk
0:02:15.3]} 47... Rg8 {[%clk 0:03:06.8]} 48. Rg3+ {[%clk 0:01:55.2]} 48... Kh7
{[%clk 0:03:07.2]} 49. Ne7+ {[%clk 0:01:32.5]} 1-0

[Event "GrandPrix_30.05"]
[Site "Chess.com"]
[Date "2020.05.30"]
[Round "1"]
[White "woodhy"]
[Black "Lukianoo"]
[Result "0-1"]
[WhiteElo "2142"]
[BlackElo "2538"]
[TimeControl "600+2"]
[EndTime "8:19:40 PDT"]
[Termination "Lukianoo won by resignation"]

1. e4 {[%clk 0:09:56.7]} 1... c6 {[%clk 0:10:00.7]} 2. d4 {[%clk 0:09:56.5]}
2... d5 {[%clk 0:10:01.7]} 3. Nc3 {[%clk 0:09:58.4]} 3... g6 {[%clk 0:10:00.5]}
4. Nf3 {[%clk 0:09:50.5]} 4... Bg7 {[%clk 0:10:01.4]} 5. Bf4 {[%clk 0:09:37.4]}
5... dxe4 {[%clk 0:09:46]} 6. Nxe4 {[%clk 0:09:39.3]} 6... Nd7 {[%clk
0:09:46.8]} 7. Bc4 {[%clk 0:09:25.1]} 7... Ngf6 {[%clk 0:09:45.9]} 8. Ng3 {[%clk
0:09:18.6]} 8... Nd5 {[%clk 0:09:42.9]} 9. Bg5 {[%clk 0:09:03]} 9... h6 {[%clk
0:09:37.1]} 10. Bd2 {[%clk 0:09:03.1]} 10... O-O {[%clk 0:09:36]} 11. O-O {[%clk
0:09:03.4]} 11... h5 {[%clk 0:09:14.3]} 12. Re1 {[%clk 0:08:56]} 12... N7b6
{[%clk 0:09:08.5]} 13. Bb3 {[%clk 0:08:12.2]} 13... Bg4 {[%clk 0:08:56.7]} 14.
c3 {[%clk 0:08:09.4]} 14... e6 {[%clk 0:08:52]} 15. h3 {[%clk 0:08:07.1]} 15...
Bxf3 {[%clk 0:08:47.9]} 16. Qxf3 {[%clk 0:08:09]} 16... a5 {[%clk 0:08:47.6]}
17. Ne4 {[%clk 0:08:04.5]} 17... a4 {[%clk 0:08:46.6]} 18. Bc2 {[%clk
0:08:04.4]} 18... Nc4 {[%clk 0:08:38.8]} 19. Bg5 {[%clk 0:08:00.7]} 19... Qc7
{[%clk 0:08:38.1]} 20. b3 {[%clk 0:07:56.7]} 20... axb3 {[%clk 0:08:36.5]} 21.
axb3 {[%clk 0:07:58.6]} 21... Ncb6 {[%clk 0:08:24]} 22. Ng3 {[%clk 0:06:06.3]}
22... Nd7 {[%clk 0:08:14.8]} 23. Ne4 {[%clk 0:05:26.9]} 23... c5 {[%clk
0:08:04.5]} 24. dxc5 {[%clk 0:04:55.1]} 24... Rxa1 {[%clk 0:07:43.4]} 25. Rxa1
{[%clk 0:04:53.6]} 25... f5 {[%clk 0:07:43.3]} 26. Nd6 {[%clk 0:03:45.1]} 26...
Nxc3 {[%clk 0:07:21.7]} 27. Re1 {[%clk 0:02:55.5]} 27... Nxc5 {[%clk 0:07:19.5]}
28. Bf4 {[%clk 0:02:25.7]} 28... Nd5 {[%clk 0:06:18.6]} 29. Bh2 {[%clk
0:01:39.6]} 29... Qa5 {[%clk 0:06:01.1]} 30. Rd1 {[%clk 0:01:09.1]} 30... Qa2
{[%clk 0:05:51.9]} 31. Bb1 {[%clk 0:00:40.6]} 31... Qxb3 {[%clk 0:05:50.7]} 32.
Qxb3 {[%clk 0:00:37.7]} 32... Nxb3 {[%clk 0:05:52.6]} 33. Nxb7 {[%clk
0:00:33.1]} 33... Nc3 {[%clk 0:05:21]} 34. Re1 {[%clk 0:00:29.4]} 34... Nd4
{[%clk 0:05:16.7]} 35. Nc5 {[%clk 0:00:26.7]} 35... e5 {[%clk 0:05:12.8]} 36.
Bd3 {[%clk 0:00:26]} 36... e4 {[%clk 0:05:10.6]} 37. Bc4+ {[%clk 0:00:26.7]}
37... Kh7 {[%clk 0:05:10.7]} 38. Ne6 {[%clk 0:00:27.6]} 38... Nxe6 {[%clk
0:05:10.7]} 39. Bxe6 {[%clk 0:00:29.5]} 39... Nb5 {[%clk 0:05:08.9]} 40. g4
{[%clk 0:00:28.6]} 40... Nd4 {[%clk 0:05:08.7]} 41. gxf5 {[%clk 0:00:27.2]}
41... gxf5 {[%clk 0:05:05.9]} 42. Bxf5+ {[%clk 0:00:18.8]} 42... Rxf5 {[%clk
0:05:05.9]} 43. Rxe4 {[%clk 0:00:19]} 43... Nf3+ {[%clk 0:05:06.9]} 44. Kg2
{[%clk 0:00:19.1]} 44... Nxh2 {[%clk 0:05:08.4]} 45. Kxh2 {[%clk 0:00:21]} 45...
Rxf2+ {[%clk 0:05:09]} 46. Kg3 {[%clk 0:00:22.9]} 46... Rf5 {[%clk 0:05:09.4]}
47. Rc4 {[%clk 0:00:23.1]} 47... Kg6 {[%clk 0:05:08.2]} 48. Rc6+ {[%clk
0:00:23.5]} 48... Bf6 {[%clk 0:05:09.3]} 49. Rc4 {[%clk 0:00:23.1]} 49... Ra5
{[%clk 0:05:08.7]} 50. Rb4 {[%clk 0:00:22.3]} 50... Ra3+ {[%clk 0:05:08.9]} 51.
Kg2 {[%clk 0:00:23.2]} 51... Kf5 {[%clk 0:05:09.2]} 52. Rb5+ {[%clk 0:00:23]}
52... Be5 {[%clk 0:05:10.1]} 53. Rb4 {[%clk 0:00:24]} 53... Rg3+ {[%clk
0:05:09.5]} 54. Kf2 {[%clk 0:00:21.7]} 54... Rxh3 {[%clk 0:05:10.1]} 55. Rb1
{[%clk 0:00:20.1]} 55... Rg3 {[%clk 0:05:07.8]} 56. Rb5 {[%clk 0:00:19.8]} 56...
h4 {[%clk 0:05:07.6]} 57. Ra5 {[%clk 0:00:19.5]} 57... Rg7 {[%clk 0:04:59.9]}
58. Ra4 {[%clk 0:00:19.1]} 58... h3 {[%clk 0:04:59.7]} 59. Kf3 {[%clk
0:00:15.4]} 59... Rh7 {[%clk 0:04:55.3]} 60. Ra5 {[%clk 0:00:11.3]} 60... h2
{[%clk 0:04:55.6]} 61. Ra1 {[%clk 0:00:10.8]} 61... h1=Q+ {[%clk 0:04:55.2]} 0-1